[Event "*** Titled Tuesday Blitz"]
[Site "Chess.com"]
[Date "2020.10.20"]
[Round "3"]
[White "gumimis"]
[Black "grunbergmihai"]
[Result "0-1"]
[WhiteElo "2291"]
[BlackElo "2507"]
[TimeControl "180+1"]
[EndTime "10:29:56 PDT"]
[Termination "grunbergmihai won by resignation"]

1. e4 {[%clk 0:02:59.7]} 1... d6 {[%clk 0:02:55]} 2. d4 {[%clk 0:02:59.3]} 2...
Nf6 {[%clk 0:02:55.9]} 3. Nc3 {[%clk 0:02:59.4]} 3... g6 {[%clk 0:02:56.2]} 4.
Bg5 {[%clk 0:03:00]} 4... Bg7 {[%clk 0:02:55.8]} 5. Qd2 {[%clk 0:03:00.5]} 5...
h6 {[%clk 0:02:55.6]} 6. Bf4 {[%clk 0:03:00.5]} 6... g5 {[%clk 0:02:44.7]} 7.
Be3 {[%clk 0:03:00.1]} 7... Ng4 {[%clk 0:02:41.6]} 8. h4 {[%clk 0:02:59]} 8...
Nxe3 {[%clk 0:02:41]} 9. Qxe3 {[%clk 0:02:58.9]} 9... e6 {[%clk 0:02:41]} 10.
hxg5 {[%clk 0:02:36.7]} 10... hxg5 {[%clk 0:02:40.8]} 11. Rxh8+ {[%clk
0:02:35.2]} 11... Bxh8 {[%clk 0:02:40.8]} 12. O-O-O {[%clk 0:02:35.3]} 12... Nc6
{[%clk 0:02:35.6]} 13. Nh3 {[%clk 0:02:32.4]} 13... g4 {[%clk 0:02:25.8]} 14.
Ng5 {[%clk 0:02:26.6]} 14... Qf6 {[%clk 0:02:20.4]} 15. Bb5 {[%clk 0:02:14.3]}
15... Bd7 {[%clk 0:02:18.9]} 16. Bxc6 {[%clk 0:02:12.2]} 16... Bxc6 {[%clk
0:02:18.1]} 17. d5 {[%clk 0:01:59.3]} 17... Bd7 {[%clk 0:02:17.7]} 18. dxe6
{[%clk 0:01:56.4]} 18... fxe6 {[%clk 0:02:17.2]} 19. Rh1 {[%clk 0:01:18.1]}
19... O-O-O {[%clk 0:02:14.5]} 20. Nh7 {[%clk 0:01:12.2]} 20... Qd4 {[%clk
0:02:08.1]} 21. Qf4 {[%clk 0:01:02.8]} 21... Be5 {[%clk 0:02:02.5]} 22. Qf7
{[%clk 0:00:58.3]} 22... Qc5 {[%clk 0:01:47.6]} 23. Nd1 {[%clk 0:00:36.1]} 23...
a5 {[%clk 0:01:42.6]} 24. Nf6 {[%clk 0:00:26]} 24... Qc4 {[%clk 0:01:38.2]} 25.
Nxd7 {[%clk 0:00:22.9]} 25... Rxd7 {[%clk 0:01:34.4]} 26. Qg8+ {[%clk
0:00:22.7]} 26... Rd8 {[%clk 0:01:33.6]} 27. Qxg4 {[%clk 0:00:22.6]} 27... Qxa2
{[%clk 0:01:32.5]} 28. Rh7 {[%clk 0:00:18.7]} 28... Kb8 {[%clk 0:01:24.8]} 29.
f4 {[%clk 0:00:17.4]} 29... Bxb2+ {[%clk 0:01:23.8]} 30. Nxb2 {[%clk 0:00:17.2]}
30... Qa1+ {[%clk 0:01:23.7]} 31. Kd2 {[%clk 0:00:17.3]} 31... Qxb2 {[%clk
0:01:24.6]} 32. Qxe6 {[%clk 0:00:16.8]} 32... Qd4+ {[%clk 0:01:22]} 33. Kc1
{[%clk 0:00:17.2]} 33... Qg1+ {[%clk 0:01:20.5]} 34. Kb2 {[%clk 0:00:17.1]}
34... Qxg2 {[%clk 0:01:20.3]} 35. Qe7 {[%clk 0:00:16.7]} 35... Rc8 {[%clk
0:01:20]} 36. f5 {[%clk 0:00:17.1]} 36... a4 {[%clk 0:01:16.7]} 37. f6 {[%clk
0:00:16.9]} 37... Qg8 {[%clk 0:01:08.7]} 38. Rg7 {[%clk 0:00:14]} 38... Qc4
{[%clk 0:01:05.3]} 39. f7 {[%clk 0:00:14]} 39... a3+ {[%clk 0:01:04.6]} 40. Kc1
{[%clk 0:00:13]} 40... a2 {[%clk 0:01:02.6]} 41. Qf6 {[%clk 0:00:10.7]} 41...
Rf8 {[%clk 0:00:55.3]} 42. Rg8 {[%clk 0:00:10.6]} 42... Rxg8 {[%clk 0:00:55.1]}
43. fxg8=Q+ {[%clk 0:00:09.2]} 43... Qxg8 {[%clk 0:00:53.7]} 44. Qa1 {[%clk
0:00:09.4]} 44... Qg1+ {[%clk 0:00:51.2]} 45. Kb2 {[%clk 0:00:09.7]} 45... Qd4+
{[%clk 0:00:48.6]} 46. Kxa2 {[%clk 0:00:10]} 46... Qxe4 {[%clk 0:00:47.5]} 47.
Qh8+ {[%clk 0:00:09.9]} 47... Ka7 {[%clk 0:00:47.3]} 48. Qc3 {[%clk 0:00:10.2]}
48... Qa4+ {[%clk 0:00:46.4]} 49. Kb1 {[%clk 0:00:09.8]} 49... c5 {[%clk
0:00:45.2]} 50. Qd3 {[%clk 0:00:09.2]} 50... Qb4+ {[%clk 0:00:43.2]} 51. Kc1
{[%clk 0:00:09.3]} 51... Qf4+ {[%clk 0:00:42.4]} 52. Kb1 {[%clk 0:00:09.3]}
52... Kb6 {[%clk 0:00:42.1]} 53. Qb3+ {[%clk 0:00:08.3]} 53... Qb4 {[%clk
0:00:39.5]} 54. Qxb4+ {[%clk 0:00:08.8]} 54... cxb4 {[%clk 0:00:39.4]} 55. Kb2
{[%clk 0:00:09.7]} 55... Kc5 {[%clk 0:00:38.3]} 56. Kb3 {[%clk 0:00:10.6]} 56...
d5 {[%clk 0:00:38]} 57. Kb2 {[%clk 0:00:10.7]} 57... Kc4 {[%clk 0:00:37.7]} 58.
Ka2 {[%clk 0:00:10.3]} 58... Kc3 {[%clk 0:00:37.5]} 59. Ka1 {[%clk 0:00:09.2]}
59... b3 {[%clk 0:00:37.1]} 60. cxb3 {[%clk 0:00:07.8]} 60... Kxb3 {[%clk
0:00:36.8]} 0-1

[Event "*** Titled Tuesday Blitz"]
[Site "Chess.com"]
[Date "2020.10.20"]
[Round "3"]
[White "pedromartinez91"]
[Black "SchieberSpieler"]
[Result "1-0"]
[WhiteElo "2481"]
[BlackElo "2431"]
[TimeControl "180+1"]
[EndTime "10:29:56 PDT"]
[Termination "pedromartinez91 won by resignation"]

1. b3 {[%clk 0:03:00.9]} 1... d5 {[%clk 0:02:59.9]} 2. Bb2 {[%clk 0:03:00.5]}
2... c5 {[%clk 0:03:00.2]} 3. Nf3 {[%clk 0:03:00.8]} 3... Nf6 {[%clk 0:02:59.5]}
4. e3 {[%clk 0:03:01.3]} 4... Nc6 {[%clk 0:02:59.6]} 5. Bb5 {[%clk 0:03:01.1]}
5... Bd7 {[%clk 0:03:00]} 6. O-O {[%clk 0:02:56.5]} 6... e6 {[%clk 0:02:59.9]}
7. d3 {[%clk 0:02:54.1]} 7... Be7 {[%clk 0:02:58.9]} 8. Bxc6 {[%clk 0:02:52.6]}
8... Bxc6 {[%clk 0:02:59]} 9. Ne5 {[%clk 0:02:53.5]} 9... Rc8 {[%clk 0:02:59.6]}
10. Nd2 {[%clk 0:02:53.8]} 10... O-O {[%clk 0:03:00.1]} 11. Nxc6 {[%clk
0:02:53.5]} 11... Rxc6 {[%clk 0:03:01]} 12. Qe2 {[%clk 0:02:53.2]} 12... b5
{[%clk 0:02:54.9]} 13. a4 {[%clk 0:02:52.4]} 13... a6 {[%clk 0:02:53.2]} 14. e4
{[%clk 0:02:52.7]} 14... Qc7 {[%clk 0:02:47.6]} 15. Rfe1 {[%clk 0:02:48.3]}
15... c4 {[%clk 0:02:45.8]} 16. exd5 {[%clk 0:02:15]} 16... exd5 {[%clk
0:02:15.7]} 17. axb5 {[%clk 0:02:01.2]} 17... axb5 {[%clk 0:02:14.7]} 18. dxc4
{[%clk 0:01:32.5]} 18... Re6 {[%clk 0:01:56.5]} 19. Qd3 {[%clk 0:01:27.6]} 19...
dxc4 {[%clk 0:01:52.7]} 20. bxc4 {[%clk 0:01:21.4]} 20... Rd6 {[%clk 0:01:48.6]}
21. Qe2 {[%clk 0:01:16.5]} 21... bxc4 {[%clk 0:00:45.8]} 22. Nxc4 {[%clk
0:01:17.4]} 22... Re6 {[%clk 0:00:38.4]} 23. Qf1 {[%clk 0:01:17.1]} 23... Rxe1
{[%clk 0:00:36.7]} 24. Rxe1 {[%clk 0:01:18]} 24... Rc8 {[%clk 0:00:37]} 25. Ne3
{[%clk 0:01:11.3]} 25... Bc5 {[%clk 0:00:33.9]} 26. Bxf6 {[%clk 0:01:05.4]}
26... Bxe3 {[%clk 0:00:34.1]} 27. Rxe3 {[%clk 0:01:05.7]} 27... gxf6 {[%clk
0:00:32.8]} 28. c3 {[%clk 0:00:56.3]} 28... Rd8 {[%clk 0:00:32.5]} 29. Qe2
{[%clk 0:00:48.4]} 29... Qd7 {[%clk 0:00:28]} 30. g3 {[%clk 0:00:46.7]} 30...
Qd1+ {[%clk 0:00:27.7]} 31. Qxd1 {[%clk 0:00:46.2]} 31... Rxd1+ {[%clk
0:00:27.5]} 32. Kg2 {[%clk 0:00:47.1]} 32... Rc1 {[%clk 0:00:28.4]} 33. Kh3
{[%clk 0:00:20]} 33... Kg7 {[%clk 0:00:28.1]} 34. Rf3 {[%clk 0:00:20.3]} 34...
Kg6 {[%clk 0:00:27.7]} 35. Kg4 {[%clk 0:00:20.8]} 35... f5+ {[%clk 0:00:23.2]}
36. Kf4 {[%clk 0:00:17.9]} 36... Kf6 {[%clk 0:00:23.1]} 37. h4 {[%clk
0:00:16.2]} 37... h5 {[%clk 0:00:21]} 38. Rd3 {[%clk 0:00:15.6]} 38... Rc2
{[%clk 0:00:19.9]} 39. Ke3 {[%clk 0:00:15.8]} 39... Ke5 {[%clk 0:00:17.8]} 40.
f4+ {[%clk 0:00:14]} 40... Ke6 {[%clk 0:00:15.2]} 41. Kd4 {[%clk 0:00:14.9]}
41... Kd6 {[%clk 0:00:14.2]} 42. c4 {[%clk 0:00:15.5]} 42... f6 {[%clk
0:00:12.1]} 43. Ra3 {[%clk 0:00:13.1]} 43... Rd2+ {[%clk 0:00:11.2]} 44. Kc3
{[%clk 0:00:12.6]} 44... Rg2 {[%clk 0:00:11.2]} 45. Kb4 {[%clk 0:00:13.1]} 45...
Kc6 {[%clk 0:00:10.9]} 46. Ra6+ {[%clk 0:00:12]} 46... Kb7 {[%clk 0:00:11.1]}
47. Rxf6 {[%clk 0:00:12.9]} 47... Rxg3 {[%clk 0:00:11]} 48. Rxf5 {[%clk
0:00:13.3]} 48... Rg4 {[%clk 0:00:11.6]} 49. Rxh5 {[%clk 0:00:13]} 49... Rxf4
{[%clk 0:00:12.2]} 50. Kb5 {[%clk 0:00:13.6]} 50... Rf1 {[%clk 0:00:05.8]} 51.
Rh7+ {[%clk 0:00:13.9]} 51... Kc8 {[%clk 0:00:05.7]} 52. c5 {[%clk 0:00:13.6]}
52... Rf6 {[%clk 0:00:05.1]} 53. h5 {[%clk 0:00:12.4]} 53... Re6 {[%clk
0:00:04.9]} 54. h6 {[%clk 0:00:12.7]} 54... Rf6 {[%clk 0:00:05]} 55. Rh8+ {[%clk
0:00:11.1]} 55... Kb7 {[%clk 0:00:04.8]} 56. h7 {[%clk 0:00:11.1]} 56... Rh6
{[%clk 0:00:05.1]} 57. c6+ {[%clk 0:00:11.2]} 57... Ka7 {[%clk 0:00:05.6]} 58.
Rd8 {[%clk 0:00:10.4]} 1-0

[Event "*** Titled Tuesday Blitz"]
[Site "Chess.com"]
[Date "2020.10.20"]
[Round "3"]
[White "Carnivoras"]
[Black "vladislavkovalev"]
[Result "0-1"]
[WhiteElo "2633"]
[BlackElo "2850"]
[TimeControl "180+1"]
[EndTime "10:29:58 PDT"]
[Termination "vladislavkovalev won on time"]

1. d4 {[%clk 0:03:00.9]} 1... Nf6 {[%clk 0:02:57.7]} 2. Nf3 {[%clk 0:03:00]}
2... g6 {[%clk 0:02:57.9]} 3. Bf4 {[%clk 0:03:00.6]} 3... Bg7 {[%clk 0:02:58.2]}
4. e3 {[%clk 0:03:01]} 4... O-O {[%clk 0:02:58.7]} 5. h3 {[%clk 0:03:01.7]} 5...
b6 {[%clk 0:02:58.4]} 6. Be2 {[%clk 0:03:01.5]} 6... Bb7 {[%clk 0:02:59.1]} 7.
O-O {[%clk 0:03:02.1]} 7... d6 {[%clk 0:02:58.9]} 8. c3 {[%clk 0:03:02.6]} 8...
Nbd7 {[%clk 0:02:59.4]} 9. Nbd2 {[%clk 0:03:03.3]} 9... a6 {[%clk 0:02:57.4]}
10. Qc2 {[%clk 0:03:02]} 10... c5 {[%clk 0:02:57.5]} 11. a4 {[%clk 0:02:59.9]}
11... Ra7 {[%clk 0:02:57.8]} 12. e4 {[%clk 0:02:41.5]} 12... cxd4 {[%clk
0:02:50.7]} 13. cxd4 {[%clk 0:02:40.4]} 13... Qa8 {[%clk 0:02:51.4]} 14. Bd3
{[%clk 0:02:30.8]} 14... Rc8 {[%clk 0:02:51.3]} 15. Qb1 {[%clk 0:02:30.1]} 15...
e5 {[%clk 0:02:19.7]} 16. dxe5 {[%clk 0:02:05.6]} 16... dxe5 {[%clk 0:02:20.6]}
17. Nxe5 {[%clk 0:02:01.2]} 17... Nxe5 {[%clk 0:02:18.6]} 18. Bxe5 {[%clk
0:02:00.1]} 18... Nxe4 {[%clk 0:02:19]} 19. Bxe4 {[%clk 0:01:23.5]} 19... Bxe5
{[%clk 0:02:19]} 20. Ra3 {[%clk 0:01:15.8]} 20... Bxe4 {[%clk 0:01:59.9]} 21.
Nxe4 {[%clk 0:01:09.5]} 21... Re7 {[%clk 0:01:51]} 22. Re3 {[%clk 0:00:40.6]}
22... Bd4 {[%clk 0:01:45.7]} 23. Re2 {[%clk 0:00:39.9]} 23... Rce8 {[%clk
0:01:35]} 24. Rfe1 {[%clk 0:00:34.6]} 24... Kg7 {[%clk 0:01:16.2]} 25. Qd3
{[%clk 0:00:30.9]} 25... Bxb2 {[%clk 0:00:45.2]} 26. Rxb2 {[%clk 0:00:08.4]}
26... Rxe4 {[%clk 0:00:45.7]} 27. Rxe4 {[%clk 0:00:07.8]} 27... Qxe4 {[%clk
0:00:46.6]} 28. Qc3+ {[%clk 0:00:04]} 28... Kg8 {[%clk 0:00:41]} 29. Rxb6 {[%clk
0:00:04.1]} 29... Qxa4 {[%clk 0:00:38.7]} 30. Kh2 {[%clk 0:00:04.1]} 30... Qf4+
{[%clk 0:00:36.2]} 31. Qg3 {[%clk 0:00:03.7]} 31... Qxg3+ {[%clk 0:00:35.9]} 32.
Kxg3 {[%clk 0:00:04.1]} 32... Ra8 {[%clk 0:00:36.6]} 33. Rb4 {[%clk 0:00:04.5]}
33... a5 {[%clk 0:00:37.3]} 34. Ra4 {[%clk 0:00:05.4]} 34... Kf8 {[%clk
0:00:37.9]} 35. Kf4 {[%clk 0:00:05.9]} 35... Ke7 {[%clk 0:00:38.7]} 36. Ke5
{[%clk 0:00:06.4]} 36... Ra6 {[%clk 0:00:36.8]} 37. g3 {[%clk 0:00:05.8]} 37...
h5 {[%clk 0:00:37.1]} 38. f4 {[%clk 0:00:05.8]} 38... Kd7 {[%clk 0:00:35.6]} 39.
f5 {[%clk 0:00:05.8]} 39... Kc6 {[%clk 0:00:31.3]} 40. Ra1 {[%clk 0:00:04.8]}
40... a4 {[%clk 0:00:30.3]} 41. Kf6 {[%clk 0:00:03.8]} 41... Kc5+ {[%clk
0:00:27.5]} 42. Kxf7 {[%clk 0:00:03.2]} 42... gxf5 {[%clk 0:00:28]} 43. Rf1
{[%clk 0:00:03.3]} 43... a3 {[%clk 0:00:28.3]} 44. Rxf5+ {[%clk 0:00:03.5]}
44... Kd4 {[%clk 0:00:28.9]} 45. Rf1 {[%clk 0:00:03.7]} 45... a2 {[%clk
0:00:29.4]} 46. Ra1 {[%clk 0:00:04.3]} 46... Ke4 {[%clk 0:00:09.1]} 47. Ke7
{[%clk 0:00:03.6]} 47... Ke5 {[%clk 0:00:01.7]} 48. g4 {[%clk 0:00:02.5]} 48...
Ra7+ {[%clk 0:00:02]} 49. Kd8 {[%clk 0:00:02.9]} 49... h4 {[%clk 0:00:02.9]} 50.
Ke8 {[%clk 0:00:02.2]} 50... Kf4 {[%clk 0:00:03.4]} 51. Kf8 {[%clk 0:00:02.2]}
51... Ra3 {[%clk 0:00:03.3]} 52. Kf7 {[%clk 0:00:01.7]} 52... Rxh3 {[%clk
0:00:03.9]} 53. Rxa2 {[%clk 0:00:02]} 53... Kxg4 {[%clk 0:00:03.6]} 54. Kf6
{[%clk 0:00:02.9]} 54... Rf3+ {[%clk 0:00:04]} 55. Kg6 {[%clk 0:00:02.6]} 55...
h3 {[%clk 0:00:04.6]} 56. Ra4+ {[%clk 0:00:02]} 56... Kg3 {[%clk 0:00:05.2]} 0-1

[Event "*** Titled Tuesday Blitz"]
[Site "Chess.com"]
[Date "2020.10.20"]
[Round "3"]
[White "CLG_Nemsko"]
[Black "jonaszmb"]
[Result "0-1"]
[WhiteElo "2221"]
[BlackElo "2413"]
[TimeControl "180+1"]
[EndTime "10:29:59 PDT"]
[Termination "jonaszmb won by checkmate"]

1. e4 {[%clk 0:03:00.9]} 1... c5 {[%clk 0:02:52.2]} 2. Nf3 {[%clk 0:03:00.9]}
2... Nc6 {[%clk 0:02:51.5]} 3. d4 {[%clk 0:03:01]} 3... cxd4 {[%clk 0:02:52.4]}
4. Nxd4 {[%clk 0:03:01.9]} 4... e5 {[%clk 0:02:52.8]} 5. Nb5 {[%clk 0:03:01.7]}
5... a6 {[%clk 0:02:53.3]} 6. N5a3 {[%clk 0:02:59.2]} 6... Nf6 {[%clk
0:02:50.2]} 7. Nc3 {[%clk 0:02:58.8]} 7... Bb4 {[%clk 0:02:50.3]} 8. Bd3 {[%clk
0:02:57.9]} 8... d5 {[%clk 0:02:49.2]} 9. exd5 {[%clk 0:02:57.3]} 9... Nxd5
{[%clk 0:02:49.5]} 10. Bd2 {[%clk 0:02:57.8]} 10... Nxc3 {[%clk 0:02:45]} 11.
Bxc3 {[%clk 0:02:58]} 11... Bxc3+ {[%clk 0:02:45.1]} 12. bxc3 {[%clk 0:02:58.9]}
12... Qa5 {[%clk 0:02:43.4]} 13. Nb1 {[%clk 0:02:56.6]} 13... O-O {[%clk
0:02:28]} 14. O-O {[%clk 0:02:54.3]} 14... Be6 {[%clk 0:02:25.7]} 15. c4 {[%clk
0:02:46]} 15... e4 {[%clk 0:02:19.8]} 16. Bxe4 {[%clk 0:02:45.6]} 16... Qe5
{[%clk 0:02:20]} 17. Nd2 {[%clk 0:02:44.2]} 17... Rad8 {[%clk 0:02:13.5]} 18.
Re1 {[%clk 0:02:30.6]} 18... Qc3 {[%clk 0:02:02.5]} 19. Bd3 {[%clk 0:02:23.3]}
19... Nb4 {[%clk 0:01:47.7]} 20. Ne4 {[%clk 0:02:12.3]} 20... Qe5 {[%clk
0:01:46.6]} 21. Qf3 {[%clk 0:02:00.1]} 21... Rxd3 {[%clk 0:01:11.5]} 22. cxd3
{[%clk 0:02:01]} 22... Nc2 {[%clk 0:01:11.4]} 23. Qd1 {[%clk 0:01:29.9]} 23...
Nxe1 {[%clk 0:01:06.7]} 24. Qxe1 {[%clk 0:01:29.9]} 24... Rd8 {[%clk 0:01:05.3]}
25. Rd1 {[%clk 0:01:28.1]} 25... h6 {[%clk 0:00:54.5]} 26. f3 {[%clk 0:01:20.5]}
26... Qd4+ {[%clk 0:00:50.5]} 27. Nf2 {[%clk 0:01:19.3]} 27... b5 {[%clk
0:00:46.9]} 28. Qe2 {[%clk 0:01:12.6]} 28... b4 {[%clk 0:00:40.4]} 29. Qc2
{[%clk 0:01:01.6]} 29... a5 {[%clk 0:00:39]} 30. Qa4 {[%clk 0:00:55.1]} 30...
Qc5 {[%clk 0:00:37.2]} 31. g3 {[%clk 0:00:41.9]} 31... Bd7 {[%clk 0:00:33.4]}
32. Qc2 {[%clk 0:00:38.4]} 32... Bc6 {[%clk 0:00:33.4]} 33. Kg2 {[%clk
0:00:37.3]} 33... a4 {[%clk 0:00:26]} 34. Qb2 {[%clk 0:00:20]} 34... a3 {[%clk
0:00:22.4]} 35. Qc2 {[%clk 0:00:19.9]} 35... Qa5 {[%clk 0:00:20.8]} 36. Rb1
{[%clk 0:00:17.9]} 36... f5 {[%clk 0:00:20.2]} 37. Qd2 {[%clk 0:00:17.3]} 37...
Qa8 {[%clk 0:00:17.4]} 38. Qf4 {[%clk 0:00:15.8]} 38... Rb8 {[%clk 0:00:11]} 39.
d4 {[%clk 0:00:12.1]} 39... b3 {[%clk 0:00:11.3]} 40. axb3 {[%clk 0:00:13]}
40... a2 {[%clk 0:00:11.3]} 41. Ra1 {[%clk 0:00:13.6]} 41... Rxb3 {[%clk
0:00:11.3]} 42. Qxf5 {[%clk 0:00:10.5]} 42... Bxf3+ {[%clk 0:00:09.2]} 43. Kh3
{[%clk 0:00:09.6]} 43... Bg2+ {[%clk 0:00:09.3]} 44. Kh4 {[%clk 0:00:09.3]}
44... Rb1 {[%clk 0:00:07.7]} 45. Rxb1 {[%clk 0:00:08.6]} 45... axb1=Q {[%clk
0:00:08.3]} 46. Qxb1 {[%clk 0:00:09.2]} 46... Qd8+ {[%clk 0:00:08.2]} 47. Kg4
{[%clk 0:00:09.2]} 47... Qxd4+ {[%clk 0:00:08.1]} 48. Ne4 {[%clk 0:00:07.3]}
48... Bxe4 {[%clk 0:00:07.2]} 49. Qb8+ {[%clk 0:00:07.7]} 49... Kh7 {[%clk
0:00:07.1]} 50. Qf4 {[%clk 0:00:08.6]} 50... Qd7+ {[%clk 0:00:06]} 51. Kh5
{[%clk 0:00:07.7]} 51... Qe8+ {[%clk 0:00:04.8]} 52. Kg4 {[%clk 0:00:07.2]}
52... Qe6+ {[%clk 0:00:05.1]} 53. Kh5 {[%clk 0:00:06.8]} 53... g6+ {[%clk
0:00:05.2]} 54. Kh4 {[%clk 0:00:06.5]} 54... g5+ {[%clk 0:00:05.7]} 55. Qxg5
{[%clk 0:00:06.9]} 55... hxg5+ {[%clk 0:00:06.6]} 56. Kxg5 {[%clk 0:00:07.8]}
56... Qxc4 {[%clk 0:00:07.2]} 57. h4 {[%clk 0:00:07.7]} 57... Bg6 {[%clk
0:00:08.1]} 58. h5 {[%clk 0:00:08.2]} 58... Bxh5 {[%clk 0:00:07.9]} 59. Kxh5
{[%clk 0:00:08.6]} 59... Qd5+ {[%clk 0:00:08.3]} 60. Kh4 {[%clk 0:00:08.6]}
60... Kg6 {[%clk 0:00:08.6]} 61. g4 {[%clk 0:00:09.5]} 61... Qg5+ {[%clk
0:00:07.8]} 62. Kg3 {[%clk 0:00:10]} 62... Kf6 {[%clk 0:00:08.1]} 63. Kf3 {[%clk
0:00:10.9]} 63... Ke5 {[%clk 0:00:08.3]} 64. Kg3 {[%clk 0:00:11.5]} 64... Ke4
{[%clk 0:00:08.2]} 65. Kh3 {[%clk 0:00:12.1]} 65... Kf3 {[%clk 0:00:07.8]} 66.
Kh2 {[%clk 0:00:11.8]} 66... Qxg4 {[%clk 0:00:08.1]} 67. Kh1 {[%clk 0:00:12.4]}
67... Qg2# {[%clk 0:00:08.3]} 0-1

[Event "*** Titled Tuesday Blitz"]
[Site "Chess.com"]
[Date "2020.10.20"]
[Round "3"]
[White "mr_gustavo"]
[Black "rududuyk"]
[Result "1-0"]
[WhiteElo "2423"]
[BlackElo "2163"]
[TimeControl "180+1"]
[EndTime "10:30:01 PDT"]
[Termination "mr_gustavo won by resignation"]

1. e4 {[%clk 0:03:00.9]} 1... e6 {[%clk 0:02:59.2]} 2. d4 {[%clk 0:03:00.3]}
2... d5 {[%clk 0:02:59.4]} 3. Nd2 {[%clk 0:03:00.7]} 3... Nf6 {[%clk 0:02:58.3]}
4. e5 {[%clk 0:02:59.6]} 4... Nfd7 {[%clk 0:02:59]} 5. Bd3 {[%clk 0:02:59.1]}
5... c5 {[%clk 0:02:59.2]} 6. c3 {[%clk 0:02:58.9]} 6... Nc6 {[%clk 0:02:59.3]}
7. Ne2 {[%clk 0:02:58.3]} 7... cxd4 {[%clk 0:02:59.7]} 8. cxd4 {[%clk
0:02:58.2]} 8... f6 {[%clk 0:03:00.3]} 9. exf6 {[%clk 0:02:56.9]} 9... Nxf6
{[%clk 0:03:01.2]} 10. Nf3 {[%clk 0:02:56.3]} 10... Bd6 {[%clk 0:02:59.8]} 11.
O-O {[%clk 0:02:55.3]} 11... Qc7 {[%clk 0:02:58.7]} 12. Bg5 {[%clk 0:02:55.3]}
12... O-O {[%clk 0:02:58.2]} 13. Bh4 {[%clk 0:02:55.2]} 13... Bd7 {[%clk
0:02:50.4]} 14. Bg3 {[%clk 0:02:54.1]} 14... Be8 {[%clk 0:02:45.9]} 15. Bxd6
{[%clk 0:02:42.3]} 15... Qxd6 {[%clk 0:02:46.8]} 16. Ng3 {[%clk 0:02:42.7]}
16... Nh5 {[%clk 0:02:35.9]} 17. Ng5 {[%clk 0:02:18.1]} 17... Nxg3 {[%clk
0:02:23.1]} 18. Bxh7+ {[%clk 0:02:16.4]} 18... Kh8 {[%clk 0:02:22.5]} 19. hxg3
{[%clk 0:02:17.3]} 19... e5 {[%clk 0:02:06.8]} 20. dxe5 {[%clk 0:02:03.3]} 20...
Nxe5 {[%clk 0:01:58.2]} 21. Bc2 {[%clk 0:01:58.9]} 21... Qh6 {[%clk 0:01:55.2]}
22. f4 {[%clk 0:01:53.3]} 22... Bh5 {[%clk 0:01:50.1]} 23. Qxd5 {[%clk
0:01:13.7]} 23... Ng4 {[%clk 0:01:49]} 24. Qe6 {[%clk 0:00:31.9]} 24... Rf6
{[%clk 0:01:35.2]} 25. Qd7 {[%clk 0:00:31.2]} 25... Rd6 {[%clk 0:01:29.1]} 26.
Qxg4 {[%clk 0:00:23.1]} 26... Bxg4 {[%clk 0:01:27.7]} 27. Nf7+ {[%clk
0:00:22.5]} 27... Kg8 {[%clk 0:01:28.1]} 28. Nxh6+ {[%clk 0:00:23.4]} 28... Rxh6
{[%clk 0:01:27.3]} 29. Rfe1 {[%clk 0:00:20.2]} 29... Kf7 {[%clk 0:01:25.9]} 30.
Bb3+ {[%clk 0:00:19.1]} 30... Kf6 {[%clk 0:01:25.8]} 31. Rac1 {[%clk 0:00:19.7]}
31... Rah8 {[%clk 0:01:22.6]} 32. Kf2 {[%clk 0:00:17.5]} 32... Rd8 {[%clk
0:01:19.8]} 33. Rc2 {[%clk 0:00:14.7]} 33... Rh2 {[%clk 0:01:16.1]} 34. Kg1
{[%clk 0:00:11.1]} 34... Rdh8 {[%clk 0:01:15.4]} 35. Rc7 {[%clk 0:00:10.6]}
35... Rh1+ {[%clk 0:01:04.5]} 36. Kf2 {[%clk 0:00:10.8]} 36... Rxe1 {[%clk
0:01:04.2]} 37. Kxe1 {[%clk 0:00:11.7]} 37... Re8+ {[%clk 0:01:04.2]} 38. Kf1
{[%clk 0:00:07.8]} 38... Be2+ {[%clk 0:00:52.9]} 39. Kf2 {[%clk 0:00:06.2]}
39... Ba6 {[%clk 0:00:53.3]} 40. Rf7+ {[%clk 0:00:05.8]} 40... Kg6 {[%clk
0:00:53.1]} 41. f5+ {[%clk 0:00:06.3]} 41... Kh6 {[%clk 0:00:52.4]} 42. f6
{[%clk 0:00:03.9]} 42... Re2+ {[%clk 0:00:51]} 43. Kf3 {[%clk 0:00:04.2]} 43...
gxf6 {[%clk 0:00:48.5]} 44. Rxf6+ {[%clk 0:00:05.1]} 44... Kg5 {[%clk
0:00:48.9]} 45. Rxa6 {[%clk 0:00:06]} 45... Rxb2 {[%clk 0:00:47.4]} 46. Ra5+
{[%clk 0:00:05.5]} 46... Kf6 {[%clk 0:00:46.2]} 47. g4 {[%clk 0:00:05.4]} 47...
a6 {[%clk 0:00:45.8]} 48. Rf5+ {[%clk 0:00:06.3]} 48... Kg6 {[%clk 0:00:45.6]}
49. Bf7+ {[%clk 0:00:05.6]} 49... Kg7 {[%clk 0:00:44.8]} 50. Bd5 {[%clk
0:00:05.3]} 50... b5 {[%clk 0:00:44.2]} 51. g5 {[%clk 0:00:05.7]} 51... Rb1
{[%clk 0:00:43.5]} 52. g4 {[%clk 0:00:05.3]} 52... b4 {[%clk 0:00:42.7]} 53. Ke4
{[%clk 0:00:04.4]} 53... a5 {[%clk 0:00:42]} 54. Ke5 {[%clk 0:00:04.8]} 54...
Re1+ {[%clk 0:00:41.1]} 55. Kd6 {[%clk 0:00:05]} 55... a4 {[%clk 0:00:40.9]} 56.
Rf7+ {[%clk 0:00:03.8]} 56... Kg6 {[%clk 0:00:40.5]} 57. Rb7 {[%clk 0:00:04.3]}
57... Kxg5 {[%clk 0:00:38.6]} 58. Rxb4 {[%clk 0:00:03.8]} 58... a3 {[%clk
0:00:38.4]} 59. Ra4 {[%clk 0:00:04]} 59... Re3 {[%clk 0:00:37.5]} 60. Bb3 {[%clk
0:00:04]} 60... Rd3+ {[%clk 0:00:37.4]} 61. Kc5 {[%clk 0:00:03.4]} 1-0